fUST/lending_fUST_20260418
["ID","MTS","AMOUNT","RATE_DAILY","PERIOD"]
[420710876,1776475844755,-366.96094333,8.219e-05,2]
[420710877,1776475844765,-1467.84377334,8.219e-05,2]
[420710878,1776475844774,-594.58,8.219e-05,2]
[420710879,1776475844784,-2575.28,8.219e-05,2]
[420710880,1776475844793,-500.0,8.219e-05,2]
[420710881,1776475844802,-976.3,8.219e-05,2]
[420710882,1776475844812,-400.00344944,8.219e-05,2]
[420710883,1776475844821,-825.95,8.219e-05,2]
[420710884,1776475844830,-500.0,8.219e-05,2]
[420710885,1776475844840,-500.0,8.219e-05,2]
[420710886,1776475844849,-500.0,8.219e-05,2]
[420710887,1776475844859,-500.0,8.219e-05,2]
[420710888,1776475844868,-500.0,8.219e-05,2]
[420710889,1776475844878,-500.0,8.219e-05,2]
[420710890,1776475844887,-420.3975976,8.219e-05,2]
[420710891,1776475844897,-500.0,8.219e-05,2]
[420710892,1776475844906,-500.0,8.219e-05,2]
[420710893,1776475844916,-1842.86,8.219e-05,2]
[420710894,1776475844925,-500.0,8.219e-05,2]
[420710895,1776475844936,-2599.3,8.219e-05,2]
[420710896,1776475844945,-500.0,8.219e-05,2]
[420710897,1776475844955,-500.0,8.219e-05,2]
[420710898,1776475844964,-500.0,8.219e-05,2]
[420710899,1776475844973,-1320.77,8.219e-05,2]
[420710900,1776475844983,-550.22,8.219e-05,2]
[420710901,1776475844992,-295.13433415,8.219e-05,2]
[420710902,1776475845001,-500.0,8.219e-05,2]
[420710903,1776475845010,-1270.91,8.219e-05,2]
[420710904,1776475845020,-936.24,8.219e-05,2]
[420710905,1776475845030,-305.40537357,8.219e-05,2]
[420710906,1776475845039,-500.0,8.219e-05,2]
[420710907,1776475845049,-688.21,8.219e-05,2]
[420710908,1776475845059,-500.0,8.219e-05,2]
[420710909,1776475845068,-500.0,8.219e-05,2]
[420710910,1776475845077,-3299.34584152,8.219e-05,2]
[420710911,1776475845086,-766.21,8.219e-05,2]
[420710912,1776475845096,-3074.37,8.219e-05,2]
[420710913,1776475845106,-500.0,8.219e-05,2]
[420710914,1776475845115,-1426.97,8.219e-05,2]
[420710915,1776475845124,-500.0,8.219e-05,2]
[420710916,1776475845134,-500.0,8.219e-05,2]
[420710917,1776475845145,-7467.91,8.219e-05,2]
[420710918,1776475845154,-1274.56,8.219e-05,2]
[420710919,1776475845164,-430.32958019,8.219e-05,2]
[420710920,1776475845174,-1532.55,8.219e-05,2]
[420710921,1776475845183,-856.02,8.219e-05,2]
[420710922,1776475845192,-500.0,8.219e-05,2]
[420710923,1776475845201,-3766.0,8.219e-05,2]
[420710924,1776475845210,-1253.45,8.219e-05,2]
[420710925,1776475845220,-500.0,8.219e-05,2]
[420710926,1776475845228,-2206.94,8.219e-05,2]
[420710927,1776475845238,-500.0,8.219e-05,2]
[420710928,1776475845248,-944.94,8.219e-05,2]
[420710929,1776475845257,-1123.72,8.219e-05,2]
[420710930,1776475845266,-931.54,8.219e-05,2]
[420710931,1776475845276,-500.0,8.219e-05,2]
[420710932,1776475845285,-500.0,8.219e-05,2]
[420710933,1776475845294,-500.0,8.219e-05,2]
[420710934,1776475845303,-832.41,8.219e-05,2]
[420710935,1776475845312,-700.74,8.219e-05,2]
[420710936,1776475845322,-153.22940374,8.219e-05,2]
[420710937,1776475845331,-774.87,8.219e-05,2]
[420710938,1776475845340,-500.0,8.219e-05,2]
[420710939,1776475845349,-500.0,8.219e-05,2]
[420710940,1776475845358,-170.70441973,8.219e-05,2]
[420710941,1776475845368,-606.84,8.219e-05,2]
[420710942,1776475845377,-946.71,8.219e-05,2]
[420710943,1776475845387,-500.0,8.219e-05,2]
[420710944,1776475845396,-505.8689208,8.219e-05,2]
[420710945,1776475845406,-691.0150395,8.239e-05,2]
[420710946,1776475845416,-432.39134495,8.313e-05,2]
[420710947,1776475845425,-719.1442,8.334e-05,2]
[420710948,1776475845434,-517.6308664,8.383e-05,2]
[420710949,1776475845444,-500.0,8.383e-05,2]
[420710950,1776475845453,-500.0,8.383e-05,2]
[420710951,1776475845463,-2312.83697232,8.493e-05,2]
[420710952,1776475845472,-500.0,8.493e-05,2]
[420710953,1776475845482,-500.0,8.493e-05,2]
[420710954,1776475845491,-500.0,8.493e-05,2]
[420710955,1776475845501,-500.0,8.493e-05,2]
[420710956,1776475845510,-813.45,8.493e-05,2]
[420710957,1776475845520,-594.58,8.493e-05,2]
[420710958,1776475845529,-2575.28,8.493e-05,2]
[420710959,1776475845539,-500.0,8.493e-05,2]
[420710960,1776475845548,-976.3,8.493e-05,2]
[420710961,1776475845557,-825.95,8.493e-05,2]
[420710962,1776475845567,-500.0,8.493e-05,2]
[420710963,1776475845577,-500.0,8.493e-05,2]
[420710964,1776475845587,-500.0,8.493e-05,2]
[420710965,1776475845596,-1842.86,8.493e-05,2]
[420710966,1776475845606,-524.83,8.493e-05,2]
[420710967,1776475845615,-2599.3,8.493e-05,2]
[420710968,1776475845623,-500.0,8.493e-05,2]
[420710969,1776475845633,-500.0,8.493e-05,2]
[420710970,1776475845642,-500.0,8.493e-05,2]
[420710971,1776475845651,-1320.77,8.493e-05,2]
[420710972,1776475845660,-550.22,8.493e-05,2]
[420710973,1776475845670,-500.0,8.493e-05,2]
[420710974,1776475845679,-1270.91,8.493e-05,2]
[420710975,1776475845689,-936.24,8.493e-05,2]
[420710976,1776475845698,-500.0,8.493e-05,2]
[420710977,1776475845707,-688.21,8.493e-05,2]
[420710978,1776475845717,-363.8722306,8.493e-05,2]
[420710979,1776475845727,-500.0,8.493e-05,2]
[420710980,1776475845736,-766.21,8.493e-05,2]
[420710981,1776475845745,-3074.37,8.493e-05,2]
[420710982,1776475845754,-500.0,8.493e-05,2]
[420710983,1776475845764,-1426.97,8.493e-05,2]
[420710984,1776475845773,-500.0,8.493e-05,2]
[420710985,1776475845782,-500.0,8.493e-05,2]
[420710986,1776475845791,-7467.91,8.493e-05,2]
[420710987,1776475845801,-1274.56,8.493e-05,2]
[420710988,1776475845810,-1532.55,8.493e-05,2]
[420710989,1776475845819,-856.02,8.493e-05,2]
[420710990,1776475845828,-500.0,8.493e-05,2]
[420710991,1776475845837,-3766.0,8.493e-05,2]
[420710992,1776475845846,-1253.45,8.493e-05,2]
[420710993,1776475845856,-500.0,8.493e-05,2]
[420710994,1776475845865,-2206.94,8.493e-05,2]
[420710995,1776475845874,-500.0,8.493e-05,2]
[420710996,1776475845884,-944.94,8.493e-05,2]
[420710997,1776475845893,-1123.72,8.493e-05,2]
[420710998,1776475845903,-931.54,8.493e-05,2]
[420710999,1776475845912,-500.0,8.493e-05,2]
[420711000,1776475845921,-500.0,8.493e-05,2]
[420711001,1776475845930,-641.76797788,8.493e-05,2]
[420711002,1776475845939,-193.07376065,8.493e-05,2]
[420711003,1776475845952,-639.33623935,8.493e-05,2]
[420711004,1776475845962,-700.74,8.493e-05,2]
[420711005,1776475845971,-774.87,8.493e-05,2]
[420711006,1776475845980,-500.0,8.493e-05,2]
[420711007,1776475845990,-606.84,8.493e-05,2]
[420711008,1776475845999,-946.71,8.493e-05,2]
[420711009,1776475846009,-500.0,8.493e-05,2]
[420711010,1776475846018,-151.0,8.5e-05,7]
[420711011,1776475846028,-1000.0,8.5e-05,3]
[420711012,1776475846037,-1000.0,8.5e-05,5]
[420711013,1776475846046,-16350.7883961,8.516e-05,2]
[420711014,1776475846055,-1182.36046172,8.644e-05,2]
[420711015,1776475846065,-775.28626302,8.7e-05,2]
[420711016,1776475846074,-1749.54993092,8.7e-05,2]
[420711017,1776475846083,-386.32630185,8.767e-05,2]
[420711018,1776475846168,-113.67369815,8.767e-05,2]
[420711019,1776475846178,-500.0,8.767e-05,2]
[420711020,1776475846187,-500.0,8.767e-05,2]
[420711021,1776475846197,-380.08029495,8.767e-05,2]
[420711022,1776475846261,179.43341858,0.00024518,120]
[420711025,1776475846297,198.02275487,0.00024518,120]
[420711026,1776475846358,252.61199924,0.00024518,120]
[420711027,1776475846404,252.61199924,0.00024518,120]
[420711028,1776475846451,252.61199924,0.00024518,120]
[420711033,1776475846715,252.61199924,0.00024518,120]
[420711034,1776475846767,252.61199924,0.00024518,120]
[420711035,1776475846845,252.61199924,0.00024518,120]
[420711036,1776475846953,252.61199924,0.00024518,120]
[420711037,1776475847473,252.61199924,0.00024518,120]
[420711038,1776475847489,-119.91970505,8.767e-05,2]
[420711039,1776475847498,-813.45,8.767e-05,2]
[420711040,1776475847507,-594.58,8.767e-05,2]
[420711041,1776475847516,-2575.28,8.767e-05,2]
[420711042,1776475847527,-500.0,8.767e-05,2]
[420711043,1776475847536,-976.3,8.767e-05,2]
[420711044,1776475847545,-825.95,8.767e-05,2]
[420711045,1776475847554,-500.0,8.767e-05,2]
[420711046,1776475847563,-500.0,8.767e-05,2]
[420711047,1776475847572,-500.0,8.767e-05,2]
[420711048,1776475847582,-1842.86,8.767e-05,2]
[420711049,1776475847591,-244.58058057,8.767e-05,2]
[420711050,1776475847602,-2354.71941943,8.767e-05,2]
[420711051,1776475847612,-500.0,8.767e-05,2]
[420711052,1776475847621,-500.0,8.767e-05,2]
[420711053,1776475847630,-500.0,8.767e-05,2]
[420711054,1776475847640,-1320.77,8.767e-05,2]
[420711055,1776475847649,-550.22,8.767e-05,2]
[420711056,1776475847658,-500.0,8.767e-05,2]
[420711057,1776475847668,-1270.91,8.767e-05,2]
[420711058,1776475847677,-936.24,8.767e-05,2]
[420711059,1776475847686,-500.0,8.767e-05,2]
[420711060,1776475847695,-688.21,8.767e-05,2]
[420711061,1776475847704,-500.0,8.767e-05,2]
[420711062,1776475847714,-766.21,8.767e-05,2]
[420711063,1776475847724,-3074.37,8.767e-05,2]
[420711064,1776475847733,-500.0,8.767e-05,2]
[420711065,1776475847743,-1426.97,8.767e-05,2]
[420711066,1776475847752,-500.0,8.767e-05,2]
[420711067,1776475847761,-500.0,8.767e-05,2]
[420711068,1776475847771,-7467.91,8.767e-05,2]
[420711069,1776475847780,-1274.56,8.767e-05,2]
[420711070,1776475847790,-1532.55,8.767e-05,2]
[420711071,1776475847800,-856.02,8.767e-05,2]
[420711072,1776475847810,-500.0,8.767e-05,2]
[420711073,1776475847819,-3766.0,8.767e-05,2]
[420711074,1776475847829,-1253.45,8.767e-05,2]
[420711075,1776475847839,-500.0,8.767e-05,2]
[420711076,1776475847848,-2206.94,8.767e-05,2]
[420711077,1776475847858,-500.0,8.767e-05,2]
[420711078,1776475847868,-944.94,8.767e-05,2]
[420711079,1776475847877,-1123.72,8.767e-05,2]
[420711080,1776475847887,-931.54,8.767e-05,2]
[420711081,1776475847897,-500.0,8.767e-05,2]
[420711082,1776475847906,-500.0,8.767e-05,2]
[420711083,1776475847916,-832.41,8.767e-05,2]
[420711084,1776475847925,-700.74,8.767e-05,2]
[420711085,1776475847935,-774.87,8.767e-05,2]
[420711086,1776475847944,-500.0,8.767e-05,2]
[420711087,1776475847954,-606.84,8.767e-05,2]
[420711088,1776475847963,-946.71,8.767e-05,2]
[420711089,1776475847973,-500.0,8.767e-05,2]
[420711090,1776475847983,-162.73910115,8.78e-05,5]
[420711091,1776475847992,-768991.99715674,8.82e-05,2]
[420711092,1776475848004,-32311.65649409,8.82e-05,2]
[420711093,1776475889993,201.5,8.408e-05,30]
[420711094,1776475891684,200.0,0.00018017,120]
[420711095,1776475894154,10000.0,0.00024658,120]
[420711096,1776475908778,10000.0,0.00024658,120]
[420711097,1776475959788,155.47,0.00024518,120]
[420711098,1776476016849,316872.58607181,0.00024518,120]
[420711099,1776476091178,261.0,0.00024518,120]
[420711103,1776476151196,2362.08,0.00023187,120]
[420711104,1776476152596,2362.17,0.0002338,120]
[420711105,1776476154029,2362.17,0.00023573,120]
[420711106,1776476155659,2362.17,0.00023765,120]
[420711107,1776476157562,2362.17,0.00023958,120]
[420711108,1776476159239,2362.17,0.00024151,120]
[420711109,1776476160412,2362.17,0.00024343,120]
[420711110,1776476162349,2362.17,0.00024536,120]
[420711111,1776476184589,158.0,0.00024408,120]
[420711112,1776476314710,293.0,0.00024408,120]
[420711114,1776476402655,544.0,0.00024408,120]
[420711115,1776476418890,621.30603026,0.00024535,120]
[420711117,1776476503544,324.0,0.00024408,120]
[420711118,1776476575431,196.0,0.00024658,120]
[420711119,1776476578121,153.0,0.00024408,120]
[420711120,1776476653725,153.0,0.00024408,120]
[420711121,1776476666372,1156.737,0.00024658,120]
[420711122,1776476715847,438.18218193,0.00024408,120]
[420711123,1776476753778,168.0,0.00024658,120]
[420711166,1776476765579,168.0,0.00024658,120]
[420711167,1776476819059,2042.0,0.00024408,120]
[420711175,1776476918399,2000.0,0.000243,120]
[420711176,1776476984750,2000.0,0.0002425,120]
[420711177,1776476997970,2000.0,0.000243,120]
[420711178,1776477009756,1006.69,0.0002431,120]
[420711215,1776477032429,-5000.0,6.129e-05,2]
[420711217,1776477032440,-508.0,6.129e-05,2]
[420711219,1776477032449,-509.0,6.191e-05,2]
[420711221,1776477032458,-337.71609535,6.28e-05,2]
[420711223,1776477032468,-300.0,6.34e-05,2]
[420711225,1776477032478,-241.63164646,6.341e-05,2]
[420711227,1776477032489,-1343.7500641,6.341e-05,2]
[420711229,1776477032500,-1163.20743793,6.341e-05,2]
[420711231,1776477032512,-2214.63429656,6.341e-05,2]
[420711233,1776477032522,-7469.51730993,6.392e-05,2]
[420711235,1776477032531,-5477.73308841,7.088e-05,2]
[420711265,1776477040433,-302.07355435,7.017e-05,2]
[420711267,1776477040446,-831.43127283,7.017e-05,2]
[420711269,1776477040726,-3866.49517282,7.017e-05,2]
[420711270,1776477040737,-2187.2894538,7.088e-05,2]
[420711271,1776477040746,-308.74942392,7.784e-05,2]
[420711273,1776477040758,-8914.94446018,7.784e-05,2]
[420711274,1776477040767,-1408.0,7.834e-05,2]
[420711275,1776477040777,-739.0,7.834e-05,2]
[420711276,1776477040787,-1483.07181014,8.119e-05,2]
[420711277,1776477040797,-958.10440436,8.119e-05,2]
[420711278,1776477040806,-600.0,8.148e-05,2]
[420711279,1776477040815,-180.71298647,8.181e-05,2]
[420711280,1776477040825,-411.91,8.2e-05,2]
[420711281,1776477040835,-222.9,8.2e-05,2]
[420711282,1776477040846,-325.2847064,8.211e-05,2]
[420711283,1776477040857,-237.65,8.214e-05,2]
[420711284,1776477040867,-2150.738,8.214e-05,2]
[420711285,1776477040877,-500.0,8.218e-05,2]
[420711286,1776477040887,-298.8704877,8.218e-05,2]
[420711287,1776477040896,-500.0,8.218e-05,2]
[420711288,1776477040906,-500.0,8.218e-05,2]
[420711289,1776477040916,-500.0,8.218e-05,2]
[420711290,1776477040925,-500.0,8.218e-05,2]
[420711291,1776477040935,-500.0,8.218e-05,2]
[420711292,1776477040944,-500.0,8.218e-05,2]
[420711293,1776477040954,-570.88728451,8.218e-05,2]
[420711294,1776477040963,-500.0,8.218e-05,2]
[420711296,1776477040973,-225.98523892,8.218e-05,2]
[420711298,1776477040982,-500.0,8.218e-05,2]
[420711300,1776477040992,-500.0,8.218e-05,2]
[420711302,1776477041001,-500.0,8.218e-05,2]
[420711304,1776477041010,-500.0,8.218e-05,2]
[420711306,1776477041020,-500.0,8.218e-05,2]
[420711308,1776477041030,-500.0,8.218e-05,2]
[420711310,1776477041039,-500.0,8.218e-05,2]
[420711311,1776477041048,-500.0,8.218e-05,2]
[420711312,1776477041058,-500.0,8.218e-05,2]
[420711313,1776477041067,-500.0,8.218e-05,2]
[420711314,1776477041077,-500.0,8.218e-05,2]
[420711315,1776477041087,-500.0,8.218e-05,2]
[420711316,1776477041096,-500.0,8.218e-05,2]
[420711317,1776477041105,-500.0,8.218e-05,2]
[420711318,1776477041115,-500.0,8.218e-05,2]
[420711319,1776477041126,-500.0,8.218e-05,2]
[420711320,1776477041135,-500.0,8.218e-05,2]
[420711321,1776477041144,-500.0,8.218e-05,2]
[420711322,1776477041154,-500.0,8.218e-05,2]
[420711323,1776477041163,-500.0,8.218e-05,2]
[420711324,1776477041173,-500.0,8.218e-05,2]
[420711325,1776477041182,-500.0,8.218e-05,2]
[420711326,1776477041191,-500.0,8.218e-05,2]
[420711327,1776477041201,-500.0,8.218e-05,2]
[420711328,1776477041210,-500.0,8.218e-05,2]
[420711329,1776477041219,-426.52661279,8.218e-05,2]
[420711330,1776477041229,-500.0,8.218e-05,2]
[420711331,1776477041238,-500.0,8.218e-05,2]
[420711332,1776477041247,-500.0,8.218e-05,2]
[420711333,1776477041257,-500.0,8.218e-05,2]
[420711334,1776477041267,-500.0,8.218e-05,2]
[420711335,1776477041277,-500.0,8.218e-05,2]
[420711336,1776477041286,-500.0,8.218e-05,2]
[420711337,1776477041295,-500.0,8.218e-05,2]
[420711338,1776477041304,-500.0,8.218e-05,2]
[420711339,1776477041313,-500.0,8.218e-05,2]
[420711340,1776477041323,-499.99999999,8.218e-05,2]
[420711341,1776477041332,-500.0,8.218e-05,2]
[420711342,1776477041342,-153.48232979,8.219e-05,2]
[420711343,1776477041352,-500.0,8.219e-05,2]
[420711344,1776477041361,-723.07,8.219e-05,2]
[420711345,1776477041370,-500.0,8.219e-05,2]
[420711346,1776477041379,-500.0,8.219e-05,2]
[420711347,1776477041389,-541.02651576,8.219e-05,2]
[420711348,1776477041399,-500.0,8.219e-05,2]
[420711349,1776477041408,-500.0,8.219e-05,2]
[420711350,1776477041419,-711.77,8.219e-05,2]
[420711351,1776477041428,-520.26,8.219e-05,2]
[420711352,1776477041437,-2254.21,8.219e-05,2]
[420711353,1776477041446,-854.83,8.219e-05,2]
[420711354,1776477041456,-809.23,8.219e-05,2]
[420711355,1776477041467,-500.0,8.219e-05,2]
[420711356,1776477041478,-500.0,8.219e-05,2]
[420711357,1776477041487,-530.99,8.219e-05,2]
[420711358,1776477041497,-500.0,8.219e-05,2]
[420711359,1776477041506,-2275.44,8.219e-05,2]
[420711360,1776477041516,-336.85544924,8.219e-05,2]
[420711361,1776477041525,-500.0,8.219e-05,2]
[420711362,1776477041534,-500.0,8.219e-05,2]
[420711363,1776477041544,-821.16,8.219e-05,2]
[420711364,1776477041553,-1158.78,8.219e-05,2]
[420711365,1776477041562,-500.0,8.219e-05,2]
[420711366,1776477041572,-150.18721156,8.219e-05,2]
[420711367,1776477041581,-500.0,8.219e-05,2]
[420711368,1776477041592,-1113.41,8.219e-05,2]
[420711369,1776477041601,-603.9,8.219e-05,2]
[420711370,1776477041611,-500.0,8.219e-05,2]
[420711371,1776477041621,-920.84,8.219e-05,2]
[420711372,1776477041631,-500.0,8.219e-05,2]
[420711373,1776477041640,-670.67,8.219e-05,2]
[420711374,1776477041650,-500.0,8.219e-05,2]
[420711375,1776477041659,-1249.9,8.219e-05,2]
[420711376,1776477041668,-500.0,8.219e-05,2]
[420711377,1776477041677,-2693.2,8.219e-05,2]
[420711378,1776477041686,-602.49,8.219e-05,2]
[420711379,1776477041696,-6541.95,8.219e-05,2]
[420711380,1776477041705,-988.61,8.219e-05,2]
[420711381,1776477041715,-1342.15,8.219e-05,2]
[420711382,1776477041724,-1117.11,8.219e-05,2]
[420711383,1776477041734,-749.11,8.219e-05,2]
[420711384,1776477041744,-3298.5,8.219e-05,2]
[420711385,1776477041753,-866.38,8.219e-05,2]
[420711386,1776477041762,-1932.35,8.219e-05,2]
[420711387,1776477041772,-500.0,8.219e-05,2]
[420711388,1776477041783,-1774.85,8.219e-05,2]
[420711389,1776477041793,-827.64,8.219e-05,2]
[420711390,1776477041802,-500.0,8.219e-05,2]
[420711391,1776477041813,-500.0,8.219e-05,2]
[420711392,1776477041823,-500.0,8.219e-05,2]
[420711393,1776477041832,-500.0,8.219e-05,2]
[420711394,1776477041841,-1097.89,8.219e-05,2]
[420711395,1776477041850,-666.75,8.219e-05,2]
[420711396,1776477041859,-1614.25,8.219e-05,2]
[420711397,1776477041869,-500.0,8.219e-05,2]
[420711398,1776477041878,-678.02,8.219e-05,2]
[420711399,1776477041888,-815.54,8.219e-05,2]
[420711400,1776477041897,-500.0,8.219e-05,2]
[420711401,1776477041906,-398.50499251,8.28e-05,2]
[420711402,1776477041916,-181.96,8.282e-05,2]
[420711403,1776477041927,-823.83,8.282e-05,2]
[420711404,1776477041936,-445.8,8.282e-05,2]
[420711405,1776477041946,-500.0,8.347e-05,2]
[420711406,1776477041956,-272.94,8.365e-05,2]
[420711407,1776477041967,-1235.75,8.365e-05,2]
[420711408,1776477041977,-668.7,8.365e-05,2]
[420711409,1776477041987,-1810.74395922,8.374e-05,2]
[420711410,1776477041996,-363.92,8.447e-05,2]
[420711411,1776477042006,-1647.67,8.447e-05,2]
[420711412,1776477042016,-891.61,8.447e-05,2]
[420711413,1776477042026,-156.206,8.492e-05,2]
[420711414,1776477042036,-500.0,8.493e-05,2]
[420711415,1776477042045,-723.07,8.493e-05,2]
[420711416,1776477042055,-500.0,8.493e-05,2]
[420711417,1776477042065,-500.0,8.493e-05,2]
[420711418,1776477042075,-491.31985034,8.493e-05,2]
[420711419,1776477042086,-500.0,8.493e-05,2]
[420711420,1776477042096,-711.77,8.493e-05,2]
[420711421,1776477042107,-520.26,8.493e-05,2]
[420711422,1776477042119,-2254.21,8.493e-05,2]
[420711423,1776477042130,-854.83,8.493e-05,2]
[420711424,1776477042140,-809.23,8.493e-05,2]
[420711425,1776477042150,-500.0,8.493e-05,2]
[420711426,1776477042159,-500.0,8.493e-05,2]
[420711427,1776477042168,-530.99,8.493e-05,2]
[420711428,1776477042178,-500.0,8.493e-05,2]
[420711429,1776477042187,-2275.44,8.493e-05,2]
[420711430,1776477042195,-500.0,8.493e-05,2]
[420711431,1776477042205,-500.0,8.493e-05,2]
[420711432,1776477042214,-821.16,8.493e-05,2]
[420711433,1776477042223,-1158.78,8.493e-05,2]
[420711434,1776477042232,-500.0,8.493e-05,2]
[420711435,1776477042241,-500.0,8.493e-05,2]
[420711436,1776477042251,-1113.41,8.493e-05,2]
[420711437,1776477042260,-603.9,8.493e-05,2]
[420711438,1776477042269,-500.0,8.493e-05,2]
[420711439,1776477042278,-920.84,8.493e-05,2]
[420711440,1776477042288,-500.0,8.493e-05,2]
[420711441,1776477042298,-670.67,8.493e-05,2]
[420711442,1776477042307,-500.0,8.493e-05,2]
[420711443,1776477042317,-1249.9,8.493e-05,2]
[420711444,1776477042326,-500.0,8.493e-05,2]
[420711445,1776477042336,-2693.2,8.493e-05,2]
[420711446,1776477042347,-602.49,8.493e-05,2]
[420711447,1776477042356,-6541.95,8.493e-05,2]
[420711448,1776477042365,-988.61,8.493e-05,2]
[420711449,1776477042375,-1342.15,8.493e-05,2]
[420711450,1776477042384,-1117.11,8.493e-05,2]
[420711451,1776477042394,-749.11,8.493e-05,2]
[420711452,1776477042403,-3298.5,8.493e-05,2]
[420711453,1776477042413,-866.38,8.493e-05,2]
[420711454,1776477042423,-1932.35,8.493e-05,2]
[420711455,1776477042433,-500.0,8.493e-05,2]
[420711456,1776477042443,-1774.85,8.493e-05,2]
[420711457,1776477042454,-827.64,8.493e-05,2]
[420711458,1776477042465,-175.55509719,8.493e-05,2]
[420711459,1776477042476,-500.0,8.493e-05,2]
[420711460,1776477042485,-429.83717009,8.493e-05,2]
[420711461,1776477042495,-500.0,8.493e-05,2]
[420711462,1776477042505,-1097.89,8.493e-05,2]
[420711463,1776477042514,-666.75,8.493e-05,2]
[420711464,1776477042524,-1614.25,8.493e-05,2]
[420711465,1776477042534,-500.0,8.493e-05,2]
[420711467,1776477042544,-678.02,8.493e-05,2]
[420711469,1776477042553,-815.54,8.493e-05,2]
[420711471,1776477042563,-454.9,8.529e-05,2]
[420711473,1776477042572,-2059.58,8.529e-05,2]
[420711474,1776477042581,-1114.51,8.529e-05,2]
[420711476,1776477042590,-4396.70914641,8.563e-05,2]
[420711479,1776477042605,-1925.81703556,8.563e-05,2]
[420711486,1776477043338,-160.0,7.819e-05,2]
[420711487,1776477043348,-1962.12298885,8.563e-05,2]
[420711493,1776477046355,-1000.0,8.563e-05,2]
[420711494,1776477046409,-3758.71198015,8.563e-05,2]
[420711498,1776477057671,2000.0,0.000243,120]
[420711499,1776477066243,2002.95,0.000243,120]
[420711500,1776477073632,1222.38,0.000243,120]
[420711501,1776477132747,10000.0,0.00024658,120]
[420711502,1776477142082,10000.0,0.00024658,120]
[420711505,1776477415677,248.0,0.00024408,120]
[420711506,1776477443228,1046.0,0.00024393,120]
[420711509,1776477502313,158.0,0.00024393,120]
[420711512,1776477620838,3011.5985256,0.00024393,120]
[420711513,1776477635425,279.0,0.00024393,120]
[420711516,1776477651915,3199.46590477,0.00024393,120]
[420711517,1776477672204,500.35,0.00024658,120]
[420711518,1776477723830,517.0,0.00024393,120]
[420711520,1776477820501,308.0,0.00024393,120]
[420711522,1776477897983,153.0,0.00024393,120]
[420711524,1776477962145,153.0,0.00024393,120]
[420711541,1776478232324,-388.02580248,6.537e-05,2]
[420711542,1776478232378,-484.00624882,6.537e-05,2]
[420711543,1776478232388,-513.0,6.537e-05,2]
[420711544,1776478232397,-556.09613366,6.603e-05,2]
[420711545,1776478232407,-5000.0,6.67e-05,2]
[420711546,1776478232416,-1200.0,6.77e-05,2]
[420711547,1776478232425,-328.49762633,6.771e-05,2]
[420711548,1776478232434,-300.0,7.748e-05,2]
[420711549,1776478232444,-300.0,7.748e-05,2]
[420711550,1776478232453,-300.0,7.748e-05,2]
[420711551,1776478232463,-300.0,7.748e-05,2]
[420711552,1776478232472,-160.0,7.82e-05,2]
[420711553,1776478232481,-2218.39144658,7.823e-05,2]
[420711554,1776478232490,-250.0,7.834e-05,2]
[420711555,1776478232500,-1363.756,7.834e-05,2]
[420711556,1776478232509,-739.0,7.834e-05,2]
[420711557,1776478232518,-184.0,7.834e-05,2]
[420711558,1776478232529,-441.0,7.834e-05,2]
[420711559,1776478232539,-500.0,7.993e-05,2]
[420711560,1776478232548,-2150.738,7.995e-05,2]
[420711561,1776478232557,-628.19370579,8e-05,2]
[420711562,1776478232567,-1592.34852294,8e-05,2]
[420711563,1776478232577,-1538.40125097,8e-05,2]
[420711564,1776478232587,-1382.87658727,8e-05,2]
[420711565,1776478232596,-2321.58977828,8e-05,2]
[420711697,1776478238850,-4681.54622423,8e-05,2]
[420711698,1776478238862,-1627.40151316,8e-05,2]
[420711699,1776478238871,-319.24389223,8e-05,2]
[420711700,1776478238881,-500.0,8.199e-05,2]